bitfinex/quotes_ETHUSD_20260310
["timestamp","ask_amount","ask_price","bid_price","bid_amount"]
[1773175200321,0.46369537,2045.8,2045.4,0.001]
[1773175201018,0.46369537,2045.6,2045.1,0.001]
[1773175203096,0.46369537,2045.4,2045.1,0.001]
[1773175205200,0.46369537,2045.3,2044.6,0.001]
[1773175205904,0.46369537,2045.3,2044.6,0.46570532]
[1773175207222,1.22237433,2045.2,2044.6,0.46570532]
[1773175207523,0.46369537,2045.1,2044.6,0.46570532]
[1773175211017,0.46369537,2045.0,2044.8,0.0011]
[1773175213823,0.46369537,2045.3,2044.8,0.95612429]
[1773175215218,0.46369537,2045.3,2045.0,0.95502429]
[1773175216305,0.46369537,2045.1,2044.6,0.001]
[1773175216624,0.46369537,2045.1,2044.4,0.46470532]
[1773175216807,0.46369537,2045.1,2044.5,0.95502429]
[1773175217597,0.46369537,2045.1,2044.5,0.95677674]
[1773175218208,1.22249388,2045.0,2044.5,0.95677674]
[1773175218411,1.92969537,2044.9,2044.5,0.95677674]
[1773175218822,1.92969537,2044.9,2044.5,1.42148206]
[1773175219609,1.92969537,2044.9,2044.5,0.46470532]
[1773175220434,1.70834542,2045.1,2044.6,2.39197109]
[1773175220623,7.6339055,2045.8,2045.0,0.49559495]
[1773175220624,4.88938119,2045.3,2045.0,0.49559495]
[1773175220824,6.35638119,2045.3,2045.0,0.49559495]
[1773175221603,6.35638119,2045.3,2044.5,1.22276957]
[1773175221604,0.48587238,2045.2,2044.7,0.49559495]
[1773175223838,1.22243411,2045.1,2044.7,0.49669495]
[1773175224010,0.001,2044.9,2044.7,0.49669495]
[1773175224210,1.22243411,2045.1,2044.8,0.49559495]
[1773175225732,1.70825507,2045.2,2044.8,0.49559495]
[1773175227312,0.44502301,2045.1,2044.8,0.49559495]
[1773175227517,1.70915878,2045.4,2044.9,0.49559495]
[1773175227729,1.91302301,2045.3,2044.9,0.49559495]
[1773175227929,0.44502301,2045.2,2044.9,0.49559495]
[1773175228145,2.69033455,2045.3,2044.9,0.49559495]
[1773175228450,0.44523152,2045.2,2044.9,0.49559495]
[1773175228650,2.69033455,2045.3,2044.9,0.49559495]
[1773175228840,0.44769099,2045.2,2044.9,0.49559495]
[1773175229054,2.69033455,2045.3,2044.9,0.49559495]
[1773175229347,0.44769099,2045.2,2045.0,0.49559495]
[1773175229651,2.69033455,2045.3,2045.0,0.49559495]
[1773175229852,0.45032257,2045.2,2045.0,0.49559495]
[1773175230024,2.69033455,2045.3,2045.0,0.49559495]
[1773175230226,0.45032257,2045.2,2045.0,0.49559495]
[1773175230556,1.468,2045.3,2045.1,0.49559495]
[1773175230734,0.45034893,2045.2,2045.1,0.49559495]
[1773175231959,0.45719732,2045.2,2045.1,0.49559495]
[1773175232955,1.67957165,2045.2,2044.9,0.49559495]
[1773175233157,0.48587238,2045.0,2044.7,0.0011]
[1773175233321,0.48587238,2045.0,2044.7,0.49669495]
[1773175233526,1.22231457,2045.3,2044.8,0.49559495]
[1773175233867,0.45746732,2045.2,2044.8,0.49559495]
[1773175234029,0.48587238,2045.3,2044.9,1.71814862]
[1773175234030,1.92746732,2045.1,2044.9,1.71814862]
[1773175234229,1.47,2045.1,2044.9,1.71814862]
[1773175234440,1.47,2045.1,2044.9,0.49559495]
[1773175235940,1.47,2045.1,2044.9,1.71810963]
[1773175236826,1.47,2045.1,2044.9,0.49559495]
[1773175237555,0.002,2045.0,2044.9,0.49559495]
[1773175237754,0.002,2045.0,2044.9,0.49659495]
[1773175238437,0.48787238,2045.0,2044.7,1.22376846]
[1773175238636,0.48787238,2045.0,2044.7,1.71936341]
[1773175238822,0.002,2045.0,2044.7,1.71936341]
[1773175241934,0.48787238,2045.0,2044.7,0.0011]
[1773175243768,0.48587238,2044.9,2044.7,0.0011]
[1773175245850,1.70847608,2044.9,2044.7,0.0011]
[1773175246234,0.44214736,2044.8,2044.7,0.0011]
[1773175246627,0.44214736,2044.8,2044.7,0.49669495]
[1773175248664,0.44217297,2044.8,2044.7,0.49669495]
[1773175250536,0.44217297,2044.8,2044.7,0.0011]
[1773175262482,2.14953839,2044.8,2044.5,0.0011]
[1773175262696,0.92692095,2044.7,2044.5,0.0011]
[1773175262977,0.48474798,2044.7,2044.5,0.0011]
[1773175264174,0.48474798,2044.8,2044.5,0.0011]
[1773175264348,0.44564075,2044.7,2044.5,0.0011]
[1773175264547,0.001,2044.7,2044.5,0.0011]
[1773175265082,0.48674798,2045.0,2044.6,0.47185198]
[1773175265379,0.48674798,2045.2,2044.9,0.47185198]
[1773175265562,1.7091297,2045.2,2044.9,0.47185198]
[1773175266878,0.48474798,2045.1,2044.6,0.47185198]
[1773175269759,0.48474798,2044.9,2044.4,0.0011]
[1773175269967,0.48474798,2044.9,2044.5,0.20025425]
[1773175270852,1.477,2044.9,2044.5,0.20025425]
[1773175271053,1.96174798,2044.9,2044.5,0.20025425]
[1773175274089,1.96174798,2044.9,2044.5,1.22279081]
[1773175274090,0.48474798,2044.8,2044.5,1.22279081]
[1773175275057,0.48474798,2044.8,2044.5,1.42304506]
[1773175275253,3.18431071,2044.9,2044.5,1.42304506]
[1773175275688,0.48474798,2044.8,2044.5,1.42304506]
[1773175276366,0.48474798,2044.8,2044.7,0.0011]
[1773175278758,1.477,2044.9,2044.7,0.0011]
[1773175278959,1.96174798,2044.9,2044.7,0.0011]
[1773175283189,1.477,2044.9,2044.7,0.20135425]
[1773175284289,3.18362696,2045.2,2044.8,0.20025425]
[1773175285194,0.4802136,2045.1,2044.8,1.42284294]
[1773175288910,0.001,2044.9,2044.8,1.42284294]
[1773175289124,1.9612136,2045.2,2044.9,0.47533407]
[1773175289275,3.18359018,2045.2,2044.9,0.47533407]
[1773175291209,3.18359018,2045.2,2045.0,0.47533407]
[1773175291210,1.481,2045.2,2045.0,0.47533407]
[1773175291409,1.481,2045.2,2045.0,1.69780887]
[1773175292603,1.481,2045.2,2045.0,0.47533407]
[1773175294176,1.481,2045.2,2045.0,1.69781528]
[1773175294614,1.481,2045.2,2044.9,1.22251679]
[1773175294787,1.9612136,2045.2,2044.9,1.22251679]
[1773175295737,1.9612136,2045.2,2044.9,1.69785086]
[1773175296792,1.481,2045.2,2045.0,0.47533407]
[1773175300232,1.481,2045.2,2045.0,1.69782233]
[1773175300593,1.481,2045.2,2045.0,0.47533407]
[1773175300894,1.481,2045.2,2045.1,0.0011]
[1773175304228,3.18358793,2045.2,2045.1,0.0011]
[1773175304400,0.4802136,2045.1,2044.9,0.0011]
[1773175304599,0.4802136,2045.1,2044.9,1.22365016]
[1773175305419,1.481,2045.2,2044.9,1.22365016]
[1773175305924,1.9612136,2045.2,2044.9,1.22365016]
[1773175308100,1.9612136,2045.2,2044.9,1.71788023]
[1773175309422,0.47572877,2045.1,2044.9,0.0011]
[1773175310025,1.481,2045.2,2044.9,0.48812728]
[1773175312330,1.481,2045.2,2045.0,1.22249388]
[1773175312498,0.002,2045.2,2045.0,1.70952116]
[1773175312704,0.001,2045.4,2045.1,0.48702728]
[1773175313006,1.487,2045.5,2045.3,0.48702728]
[1773175313530,0.47572877,2045.6,2045.3,0.48702728]
[1773175313705,0.47572877,2045.8,2045.5,0.48702728]
[1773175314238,0.47572877,2045.8,2045.5,1.70917182]
[1773175314610,0.47572877,2046.1,2045.7,0.48702728]
[1773175314813,1.96172877,2046.1,2045.7,0.48702728]
[1773175316217,1.96172877,2046.1,2045.7,1.70905202]
[1773175316418,3.18356795,2046.1,2045.7,1.70905202]
[1773175316925,3.18356795,2046.1,2045.8,0.48702728]
[1773175317329,0.47572877,2046.0,2045.6,1.22208625]
[1773175317726,0.47572877,2046.0,2045.6,1.70911353]
[1773175318214,2.70783918,2046.1,2045.7,0.48702728]
[1773175318419,0.47572877,2046.0,2045.7,0.48702728]
[1773175319332,0.47572877,2046.0,2045.6,1.70911353]
[1773175320829,0.47572877,2046.0,2045.7,0.48702728]
[1773175323145,0.47572877,2046.0,2045.7,1.70905555]
[1773175323448,3.1835706,2046.1,2045.7,1.70905555]
[1773175326651,0.002,2045.9,2045.7,1.70905555]
[1773175328341,0.002,2045.9,2045.7,0.48702728]
[1773175330852,0.002,2045.9,2045.7,1.70908211]
[1773175331150,0.002,2045.9,2045.7,0.48702728]
[1773175331349,0.002,2045.9,2045.8,0.48702728]
[1773175331947,0.002,2045.9,2045.6,2.66597279]
[1773175334837,0.002,2045.9,2045.7,0.48702728]
[1773175337931,0.002,2045.9,2045.7,1.70908557]
[1773175338746,0.002,2045.8,2045.7,1.70908557]
[1773175338956,1.488,2046.1,2045.8,0.48702728]
[1773175339264,0.002,2046.1,2046.0,0.46594514]
[1773175339561,0.002,2046.4,2046.1,0.46594514]
[1773175339867,1.96268023,2046.6,2046.3,0.46594514]
[1773175340037,1.96268023,2046.6,2046.4,1.22165754]
[1773175340563,0.47368023,2047.0,2046.5,0.46594514]
[1773175340731,0.47368023,2047.2,2046.9,0.46594514]
[1773175340937,0.47368023,2047.2,2046.6,0.46594514]
[1773175341140,0.47368023,2047.2,2046.4,1.68760268]
[1773175341337,0.47368023,2047.2,2046.4,1.22165754]
[1773175341557,0.47368023,2047.2,2046.5,0.46594514]
[1773175342180,0.47368023,2047.0,2046.2,0.95515536]
[1773175342462,1.2212398,2047.1,2046.1,1.68776996]
[1773175342463,0.47368023,2046.8,2046.1,1.68776996]
[1773175342642,0.47368023,2046.6,2046.1,1.68776996]
[1773175345240,0.47368023,2046.4,2045.9,1.68785245]
[1773175346837,0.47368023,2046.4,2046.0,0.46594514]
[1773175347153,0.47368023,2046.7,2046.0,0.46594514]
[1773175347986,0.47368023,2046.5,2046.1,1.6877818]
[1773175348279,0.47368023,2046.5,2046.0,1.22185426]
[1773175348784,0.47368023,2046.5,2046.0,1.6877994]
[1773175348991,0.47368023,2046.5,2046.1,0.46594514]
[1773175350253,1.2216568,2046.5,2046.1,0.46594514]
[1773175350453,0.47368023,2046.4,2046.0,1.22185426]
[1773175350767,0.47368023,2046.4,2046.0,1.6877994]
[1773175351982,0.002,2046.3,2046.0,1.6877994]
[1773175353278,0.47568023,2046.3,2046.0,1.6877994]
[1773175360492,0.47368023,2046.2,2045.7,1.22307391]
[1773175361292,0.47368023,2046.2,2045.7,0.001]
[1773175361466,0.47368023,2046.1,2045.7,0.001]
[1773175361667,0.47368023,2045.9,2045.7,0.001]
[1773175362565,0.47368023,2045.7,2045.4,0.001]
[1773175364175,1.69576573,2045.7,2045.4,0.001]
[1773175364383,0.47368023,2045.6,2045.4,0.001]
[1773175367402,0.49596104,2045.8,2045.4,0.46689759]
[1773175369409,0.49002333,2045.6,2045.4,0.001]
[1773175374517,0.49002333,2045.5,2045.1,0.0011]
[1773175374819,0.49002333,2045.5,2045.1,1.22353144]
[1773175375117,0.49002333,2045.5,2045.1,1.22352894]
[1773175376884,0.49002333,2045.4,2045.1,1.22352894]
[1773175379113,0.49002333,2045.4,2045.1,0.0011]
[1773175379322,1.71228031,2045.4,2045.1,0.0011]
[1773175379692,0.49002333,2045.3,2045.1,0.0011]
[1773175380622,0.49002333,2045.3,2044.9,1.22365325]
[1773175380990,0.49002333,2045.3,2044.7,0.0011]
[1773175380991,0.49002333,2045.2,2044.7,0.0011]
[1773175381597,0.49002333,2045.0,2044.7,0.0011]
[1773175383213,0.49002333,2044.9,2044.7,0.0011]
[1773175387539,0.49002333,2044.9,2044.4,0.0011]
[1773175387540,0.49002333,2044.8,2044.4,0.0011]
[1773175387723,0.49002333,2044.4,2043.8,1.72294106]
[1773175387907,0.49002333,2044.4,2043.9,0.49865255]
[1773175388100,0.49002333,2044.0,2043.8,0.0011]
[1773175388410,0.49002333,2044.0,2043.6,1.22442661]
[1773175388917,0.49002333,2043.9,2043.6,1.22442661]
[1773175389321,0.49002333,2043.9,2043.6,1.72307916]
[1773175391037,0.49002333,2043.9,2043.8,0.0011]
[1773175391633,1.71318288,2043.9,2043.6,0.0011]
[1773175391834,1.71318288,2043.9,2043.2,0.0011]
[1773175391835,0.49002333,2043.6,2043.2,0.0011]
[1773175392018,0.49002333,2043.6,2043.2,0.0022]
[1773175393321,0.49002333,2043.6,2043.2,0.49975255]
[1773175393519,0.49002333,2043.6,2043.3,0.0011]
[1773175393520,1.98202333,2043.6,2043.3,0.0011]
[1773175393724,0.49002333,2043.5,2043.3,0.0011]
[1773175396847,1.71345033,2043.5,2043.3,0.0011]
[1773175401524,1.71345033,2043.5,2043.2,0.46985702]
[1773175401525,1.493,2043.8,2043.4,0.46875702]
[1773175402124,0.45823865,2043.7,2043.5,0.0011]
[1773175402328,0.45823865,2043.7,2043.2,0.46985702]
[1773175402734,0.45823865,2043.7,2043.3,0.0011]
[1773175403247,1.22333137,2043.6,2043.3,0.0011]
[1773175403451,1.68157002,2043.6,2043.5,0.0011]
[1773175403645,1.68157002,2043.6,2043.2,0.46985702]
[1773175403646,0.45823865,2043.5,2043.2,0.0011]
[1773175403838,0.45823865,2043.5,2043.3,0.0022]
[1773175404927,4.89310193,2043.7,2043.4,0.0011]
[1773175405159,1.494,2043.7,2043.5,0.46985702]
[1773175405366,1.494,2043.7,2043.4,0.0011]
[1773175407556,3.1755602,2043.7,2043.4,0.0011]
[1773175408152,0.45823865,2043.6,2043.4,0.0011]
[1773175409542,2.71732155,2043.7,2043.4,0.0011]
[1773175409743,3.1755602,2043.7,2043.5,0.0011]
[1773175409948,3.1755602,2043.7,2043.4,0.0011]
[1773175410624,0.45823865,2043.6,2043.4,0.0011]
[1773175410820,0.45823865,2043.6,2043.3,0.0011]
[1773175411046,0.45823865,2043.6,2043.3,0.0022]
[1773175412852,0.45823865,2043.4,2043.3,0.0022]
[1773175413640,1.22339124,2043.5,2043.3,0.0022]
[1773175413836,1.68157002,2043.6,2043.3,0.0022]
[1773175414035,0.45823865,2043.5,2042.0,4.98578696]
[1773175414258,0.45933865,2043.5,2042.3,2.18189703]
[1773175414554,0.49999999,2043.3,2042.4,0.95778696]
[1773175414853,1.72369064,2043.0,2042.5,1.2239902]
[1773175415634,0.49999999,2042.9,2042.5,1.2239902]
[1773175416342,0.0011,2043.0,2042.5,3.62079923]
[1773175416943,0.49999999,2043.1,2042.5,3.62079923]
[1773175416944,0.49999999,2043.1,2043.0,0.0011]
[1773175417139,0.0011,2043.0,2042.5,3.62079923]
[1773175418140,1.72364047,2043.1,2042.5,3.62079923]
[1773175419864,0.0011,2043.0,2042.5,3.62079923]
[1773175420053,0.49999999,2043.2,2042.5,3.62079923]
[1773175420251,0.50109999,2043.2,2042.5,3.62079923]
[1773175421732,0.50099999,2043.4,2042.9,1.22375055]
[1773175421960,0.50099999,2043.4,2042.5,1.2239902]
[1773175421961,0.49999999,2043.3,2042.5,1.2239902]
[1773175422464,0.49999999,2043.3,2042.7,2.39680903]
[1773175423676,0.49999999,2043.3,2042.5,1.2239902]
[1773175424676,0.49999999,2043.3,2042.8,2.39680903]
[1773175424888,0.001,2043.4,2042.8,2.39680903]
[1773175426166,0.50099999,2043.4,2042.8,2.39680903]
[1773175426376,0.49999999,2043.3,2042.9,1.22375055]
[1773175427490,0.49999999,2043.3,2042.5,4.8959424]
[1773175429178,1.22357086,2043.2,2042.5,4.8959424]
[1773175429385,0.49999999,2043.1,2042.5,4.8959424]
[1773175429880,0.49999999,2043.1,2042.9,0.0011]
[1773175431770,0.48084127,2043.0,2042.6,0.0011]
[1773175431970,0.48084127,2043.0,2042.0,1.0]
[1773175432160,0.48029127,2042.8,2042.0,1.0]
[1773175432355,0.48029127,2042.8,2042.0,2.22428707]
[1773175432578,0.48029127,2042.7,2042.1,0.03941744]
[1773175434602,0.48029127,2042.5,2042.1,1.22419042]
[1773175435187,0.48029127,2042.5,2042.1,1.26360786]
[1773175435689,0.48029127,2042.5,2042.1,2.22261486]
[1773175436075,0.48029127,2042.5,2042.1,2.18319742]
[1773175436264,0.48029127,2042.7,2042.2,0.03941744]
[1773175436766,0.48029127,2042.7,2042.3,1.22411007]
[1773175437790,0.48029127,2042.6,2042.3,2.18311707]
[1773175437993,0.48029127,2042.8,2042.4,0.03941744]
[1773175438192,0.48029127,2043.2,2042.7,0.99842444]
[1773175438566,0.48029127,2043.2,2042.7,0.03941744]
[1773175438798,0.48029127,2043.2,2042.5,0.99842444]
[1773175439799,0.48029127,2043.0,2042.6,1.22393028]
[1773175440294,0.48029127,2043.0,2042.6,1.26334772]
[1773175440495,0.46181544,2043.3,2042.7,0.959007]
[1773175440696,0.46181544,2043.3,2042.9,0.959007]
[1773175440895,0.46181544,2043.3,2042.6,1.22393028]
[1773175442001,0.46181544,2043.1,2042.6,1.22393028]
[1773175442500,0.46181544,2043.1,2042.9,0.0011]
[1773175442675,0.46281544,2043.1,2042.9,0.0011]
[1773175446306,0.46181544,2043.0,2042.7,0.0011]
[1773175446612,0.46181544,2042.8,2042.7,0.0011]
[1773175446783,0.46181544,2043.0,2042.7,0.0011]
[1773175447204,2.92606489,2042.9,2042.7,0.0011]
[1773175447400,0.46181544,2043.0,2042.7,0.0011]
[1773175447604,2.92587431,2043.0,2042.7,0.0011]
[1773175447916,1.68649412,2043.1,2042.7,0.0011]
[1773175448984,0.46181544,2043.0,2042.7,0.0011]
[1773175450197,1.68553523,2043.0,2042.7,0.0011]
[1773175450418,0.46181544,2043.0,2042.7,0.0011]
[1773175450878,1.224651,2043.1,2042.7,0.0011]
[1773175451083,1.68646644,2043.1,2042.7,0.0011]
[1773175452186,0.46181544,2043.0,2042.7,0.0011]
[1773175452382,0.46181544,2042.9,2042.7,0.0011]
[1773175452708,0.46181544,2042.9,2042.4,1.22515013]
[1773175452909,0.46181544,2042.9,2042.1,7.75518279]
[1773175452910,0.46181544,2042.9,2042.1,1.22420481]
[1773175453213,0.46181544,2042.9,2042.4,2.85830514]
[1773175453581,2.70974888,2043.0,2042.4,2.85830514]
[1773175453582,0.46181544,2043.0,2042.5,0.46217695]
[1773175454507,0.46181544,2043.0,2042.6,1.68610723]
[1773175454682,0.001,2043.1,2042.7,0.46217695]
[1773175455192,1.22466148,2043.1,2042.7,0.46217695]
[1773175455394,0.46181544,2043.0,2042.6,0.0011]
[1773175457005,1.68552918,2043.0,2042.6,0.0011]
[1773175459833,1.68551574,2043.0,2042.6,0.0011]
[1773175461384,1.68550934,2043.0,2042.6,1.22503028]
[1773175462815,6.38385242,2043.4,2042.8,0.45256095]
[1773175462816,0.4748217,2043.4,2042.8,0.45256095]
[1773175463022,0.4738217,2043.3,2042.8,0.45256095]
[1773175463385,1.69735602,2043.3,2042.8,1.67633381]
[1773175463591,0.4738217,2043.2,2042.8,1.67633381]
[1773175465642,0.4738217,2043.0,2042.6,0.0011]
[1773175467755,1.69757225,2042.9,2042.6,0.0011]
[1773175469619,0.4738217,2042.8,2042.6,0.0011]
[1773175470215,1.69764568,2042.8,2042.6,0.0011]
[1773175470622,0.4738217,2042.7,2042.4,0.0011]
[1773175471311,0.4738217,2042.8,2042.4,1.67770681]
[1773175471516,1.9698217,2042.8,2042.4,1.67770681]
[1773175472253,0.4738217,2042.7,2042.4,1.67770681]
[1773175472546,0.4738217,2042.7,2042.4,0.45366095]
[1773175473027,0.4738217,2042.7,2042.4,0.0011]
[1773175474548,0.4738217,2042.6,2042.4,0.0011]
[1773175476757,1.6978119,2042.5,2042.4,0.0011]
[1773175478860,0.4738217,2042.5,2042.4,0.0011]
[1773175480469,1.9758217,2042.8,2042.4,0.45366095]
[1773175480640,0.001,2042.6,2042.4,0.45366095]
[1773175482673,0.001,2042.6,2042.4,1.6776644]
[1773175485475,0.001,2042.6,2042.4,1.22510345]
[1773175486885,0.4748217,2042.6,2042.4,1.22510345]
[1773175487567,0.4748217,2042.6,2042.4,0.0011]
[1773175490174,0.001,2042.6,2042.4,0.0011]
[1773175490881,0.001,2042.6,2042.4,0.48328427]
[1773175491881,0.001,2042.6,2042.5,0.48218427]
[1773175492197,1.492,2042.8,2042.5,0.48218427]
[1773175492493,1.492,2042.8,2042.6,0.0011]
[1773175492868,1.94428496,2042.8,2042.6,0.0011]
[1773175493069,0.45228496,2043.3,2042.8,0.44501317]
[1773175493300,1.67567704,2043.5,2043.1,0.44501317]
[1773175494191,1.67567704,2043.5,2043.1,1.66858471]
[1773175494192,0.45328496,2043.4,2043.1,1.66858471]
[1773175494397,0.45328496,2043.4,2043.2,0.44501317]
[1773175494398,0.001,2043.4,2043.2,0.44501317]
[1773175494606,0.45228496,2043.6,2043.2,0.44501317]
[1773175494607,0.45228496,2043.6,2043.2,1.40402978]
[1773175496316,0.45228496,2043.6,2043.3,1.66852415]
[1773175497191,1.93228496,2043.8,2043.3,1.66852415]
[1773175498017,0.45228496,2044.5,2043.6,0.48218427]
[1773175498185,0.47674529,2044.5,2044.0,0.48218427]
[1773175498384,0.45228496,2044.4,2043.9,2.66429625]
[1773175498709,0.47674529,2044.4,2043.9,2.66429625]
[1773175499115,0.47674529,2044.4,2044.0,0.48218427]
[1773175499287,1.67506517,2044.6,2044.1,0.48218427]
[1773175500714,0.45228496,2044.5,2044.1,0.48218427]
[1773175501015,0.45228496,2044.5,2044.0,1.70523128]
[1773175501393,0.45228496,2044.5,2043.4,0.48218427]
[1773175503129,0.45228496,2044.3,2043.4,0.48218427]
[1773175503326,0.45228496,2044.1,2043.3,1.22346624]
[1773175503627,0.45228496,2044.1,2043.3,1.70565051]
[1773175504196,0.45228496,2044.1,2043.3,0.48218427]
[1773175504402,0.45228496,2044.1,2043.1,1.70581502]
[1773175504621,1.94628496,2044.0,2043.2,0.48218427]
[1773175504826,1.94628496,2044.0,2043.4,0.48218427]
[1773175506401,1.94628496,2044.0,2043.6,0.48218427]
[1773175506402,0.45228496,2044.0,2043.6,0.48218427]
[1773175506602,1.94828496,2044.2,2043.7,0.48218427]
[1773175507205,0.45228496,2044.2,2043.7,0.48218427]
[1773175507505,0.001,2044.3,2043.7,0.48218427]
[1773175507709,1.67620428,2044.3,2043.7,0.48218427]
[1773175508315,0.45228496,2044.2,2043.7,0.48218427]
[1773175508754,0.45228496,2044.2,2043.8,1.70539593]
[1773175515846,0.45228496,2044.2,2043.9,0.48218427]
[1773175516291,0.001,2044.3,2044.1,0.48218427]
[1773175518601,0.001,2044.3,2044.0,1.70527624]
[1773175518808,0.45328496,2044.3,2044.0,1.70526585]
[1773175521012,0.45328496,2044.3,2044.0,0.48218427]
[1773175521216,1.67619862,2044.3,2044.0,0.48218427]
[1773175521507,1.67619862,2044.3,2043.9,1.68598611]
[1773175521687,0.4918036,2044.2,2043.9,1.68598611]
[1773175522302,0.001,2044.3,2044.0,0.46287601]
[1773175522600,0.4918036,2044.4,2044.0,1.42027126]
[1773175523704,0.4918036,2044.3,2043.9,1.22309501]
[1773175524014,0.4918036,2044.3,2043.7,1.68611203]
[1773175524310,0.4918036,2044.3,2043.6,1.22440467]
[1773175524910,0.4918036,2044.3,2043.6,1.68728068]
[1773175525116,0.4918036,2044.3,2043.7,0.46287601]
[1773175525621,0.4918036,2044.1,2043.8,1.22321166]
[1773175526823,0.4918036,2044.3,2043.8,2.60295188]
[1773175527121,1.9948036,2044.3,2043.9,0.46287601]
[1773175527329,0.4918036,2044.2,2043.9,0.46287601]
[1773175527911,0.4918036,2044.1,2043.6,1.22443057]
[1773175528299,0.4918036,2044.1,2043.6,0.0011]
[1773175528521,0.4918036,2044.1,2043.4,0.0011]
[1773175529029,0.4918036,2044.1,2043.4,2.64473438]
[1773175529402,0.4918036,2044.1,2043.8,0.0011]
[1773175529602,0.4918036,2044.1,2043.4,2.64473438]
[1773175530013,0.4918036,2043.9,2043.5,0.0011]
[1773175530936,0.4918036,2043.9,2043.5,0.46397601]
[1773175531807,0.4918036,2043.9,2043.6,1.42018495]
[1773175532018,0.4918036,2044.1,2043.7,1.68614752]
[1773175532227,0.4918036,2044.1,2043.8,0.46287601]
[1773175532431,0.4918036,2044.6,2044.1,0.46287601]
[1773175532726,0.4918036,2044.6,2043.7,1.22327151]
[1773175532727,1.493,2044.7,2044.3,0.46287601]
[1773175534050,1.9848036,2044.7,2044.3,0.46287601]
[1773175534215,1.9848036,2044.7,2044.1,1.68590815]
[1773175534216,1.71453665,2044.6,2044.1,1.68590815]
[1773175534422,0.4918036,2044.5,2043.8,0.46287601]
[1773175534622,0.4918036,2044.5,2043.8,1.68603862]
[1773175535329,0.4918036,2044.5,2043.9,0.46287601]
[1773175536516,1.22285267,2044.4,2043.7,5.35572266]
[1773175536742,0.4918036,2044.3,2043.7,1.68614752]
[1773175536936,0.4918036,2044.3,2043.7,0.46287601]
[1773175539772,1.71477591,2044.2,2043.7,1.68610428]
[1773175541077,0.4918036,2044.1,2043.7,1.22322827]
[1773175541255,0.4918036,2044.1,2043.5,1.68733087]
[1773175541656,0.4918036,2044.1,2043.9,0.0011]
[1773175541864,1.71589557,2044.0,2043.9,0.0011]
[1773175542372,0.4918036,2043.9,2043.7,0.0011]
[1773175542547,0.4918036,2043.9,2043.5,0.0011]
[1773175544575,1.22321166,2043.8,2043.5,0.0011]
[1773175544768,1.71501526,2043.8,2043.5,0.0011]
[1773175544975,0.4928036,2044.0,2043.5,0.46397601]
[1773175545473,1.71592013,2044.0,2043.5,0.46397601]
[1773175546367,0.4918036,2043.9,2043.5,0.46397601]
[1773175547877,1.22321166,2043.8,2043.5,0.0011]
[1773175548080,0.47888364,2043.7,2043.3,0.0011]
[1773175550072,1.22333137,2043.6,2043.3,0.0011]
[1773175550257,0.46517729,2043.5,2043.3,0.0011]
[1773175550656,0.46517729,2043.3,2043.1,0.0011]
[1773175550854,0.46517729,2043.3,2042.7,1.70733195]
[1773175552865,1.22357086,2043.2,2042.8,0.4834812]
[1773175553086,1.68873396,2043.3,2042.8,0.4834812]
[1773175554186,1.68873396,2043.3,2042.9,0.0011]
[1773175554565,0.46517729,2043.2,2042.9,0.0011]
[1773175554774,1.68878849,2043.2,2042.9,0.0011]
[1773175554997,0.46517729,2043.1,2042.9,0.0011]
[1773175560293,1.68873517,2043.3,2042.9,0.4845812]
[1773175560916,0.46517729,2043.3,2042.9,0.4845812]
[1773175561102,1.96917729,2043.3,2042.9,0.4845812]
[1773175561998,1.504,2043.3,2042.9,0.4845812]
[1773175562202,1.68880396,2043.2,2042.9,0.0011]
[1773175562507,0.46517729,2043.1,2042.9,0.0011]
[1773175565713,1.96917729,2043.3,2042.9,0.4845812]
[1773175566013,3.19269049,2043.3,2042.9,0.4845812]
[1773175566593,1.96917729,2043.3,2042.9,0.4845812]
[1773175566798,1.96917729,2043.3,2043.0,1.22369065]
[1773175567002,1.96917729,2043.3,2043.1,0.0011]
[1773175567400,1.504,2043.3,2043.1,0.0011]
[1773175567616,1.68860302,2043.5,2043.1,0.4845812]
[1773175570084,0.46517729,2043.4,2043.1,0.4845812]
[1773175573450,1.68864945,2043.4,2043.1,0.4845812]
[1773175575723,0.46517729,2043.3,2043.1,0.0011]
[1773175578401,1.68869058,2043.3,2043.1,0.0011]
[1773175578603,0.46517729,2043.6,2043.1,0.4845812]
[1773175579338,0.46517729,2043.6,2043.1,0.0011]
[1773175580736,0.48498329,2043.4,2043.1,0.0011]
[1773175580908,1.98798329,2043.4,2043.1,0.45438443]
[1773175583643,3.2114792,2043.4,2043.1,0.45438443]
[1773175587255,0.48498329,2043.3,2043.1,0.0011]
[1773175587557,1.22340084,2043.5,2043.2,0.45328443]
[1773175587731,5.37831324,2043.6,2043.1,0.0011]
[1773175587732,0.48498329,2043.3,2043.1,0.0011]
[1773175590360,1.70850503,2043.3,2043.1,0.0011]
[1773175590858,0.48498329,2043.2,2043.1,6.922e-05]
[1773175592563,1.70855415,2043.2,2043.1,6.922e-05]
[1773175594056,0.48498329,2043.2,2043.1,6.922e-05]
[1773175594278,1.22356711,2043.3,2043.1,0.45335365]
[1773175595877,1.22356711,2043.3,2043.1,6.922e-05]
[1773175596070,1.7085504,2043.3,2043.1,6.922e-05]
[1773175596263,0.48498329,2043.2,2043.1,6.922e-05]
[1773175596579,0.48498329,2043.2,2043.0,0.0011]
[1773175598155,1.22363075,2043.1,2043.0,0.0011]
[1773175598394,1.70852631,2043.3,2043.0,0.45438443]
[1773175598572,1.507,2043.2,2043.0,0.45438443]
[1773175598893,1.507,2043.3,2043.1,0.45328443]
[1773175600079,1.507,2043.3,2043.0,0.0011]
[1773175600287,3.21551093,2043.3,2043.0,0.0011]
[1773175600603,3.21551093,2043.3,2043.0,0.45438443]
[1773175601675,1.507,2043.3,2043.0,0.45438443]
[1773175602284,1.507,2043.3,2043.1,0.45328443]
[1773175602468,0.48498329,2043.4,2043.1,0.45328443]
[1773175602469,1.22343943,2043.5,2043.1,0.45328443]
[1773175602671,1.508,2043.4,2043.1,0.45328443]
[1773175603876,1.99298329,2043.4,2043.1,0.45328443]
[1773175604286,3.2164344,2043.4,2043.3,0.0011]
[1773175604605,0.001,2043.1,2043.0,0.0011]
[1773175604789,0.001,2043.1,2043.0,0.26845175]
[1773175606075,0.48498329,2043.3,2043.0,1.49213517]
[1773175606275,2.73145111,2043.4,2043.1,0.26735175]
[1773175607614,3.22748812,2043.4,2043.1,0.26735175]
[1773175608599,0.49603701,2043.3,2043.0,0.0011]
[1773175609797,0.46502164,2043.1,2043.0,0.0011]
[1773175614012,1.68865239,2043.1,2043.0,0.0011]
[1773175614215,0.46502164,2043.0,2042.1,1.22528374]